bitfinex/quotes_BTCUSD_20220120
["timestamp","ask_amount","ask_price","bid_price","bid_amount"]
[1642661760913,0.0162,42055.0,42048.0,0.484505]
[1642661761117,0.0162,42055.0,42049.0,0.2856329]
[1642661762260,0.0232,42055.0,42054.0,0.00125476]
[1642661762462,0.0232,42055.0,42054.0,0.38522976]
[1642661762663,0.00730942,42055.0,42054.0,0.38522976]
[1642661763059,0.00730942,42055.0,42054.0,0.71130002]
[1642661763663,0.00030942,42055.0,42054.0,0.38522976]
[1642661763860,0.00030942,42055.0,42054.0,0.383975]
[1642661764260,0.00630942,42055.0,42054.0,0.383975]
[1642661764960,0.00630942,42055.0,42054.0,0.68296955]
[1642661765415,0.00630942,42055.0,42054.0,0.6832632]
[1642661765611,0.00030942,42055.0,42054.0,0.6832632]
[1642661766028,0.00030942,42055.0,42054.0,0.6844855]
[1642661766412,0.00030942,42055.0,42054.0,1.1844855]
[1642661766811,0.00201725,42057.0,42055.0,0.7]
[1642661766812,0.00130386,42057.0,42055.0,0.7]
[1642661767010,0.00130386,42057.0,42056.0,1.13761485]
[1642661767412,0.00028661,42057.0,42056.0,0.73761485]
[1642661769560,0.23028661,42057.0,42056.0,0.73761485]
[1642661770363,0.23028661,42057.0,42056.0,0.73790814]
[1642661772364,0.23428661,42057.0,42056.0,0.73790814]
[1642661773518,0.22948308,42057.0,42056.0,1.07337376]
[1642661774416,0.23348308,42057.0,42056.0,1.07337376]
[1642661775417,0.23348308,42057.0,42056.0,1.07347153]
[1642661775620,0.22948308,42057.0,42056.0,1.07347153]
[1642661776460,0.23348308,42057.0,42056.0,1.07347153]
[1642661777562,0.22948308,42057.0,42056.0,1.07347153]
[1642661778362,0.23348308,42057.0,42056.0,1.07347153]
[1642661779563,0.22948308,42057.0,42056.0,1.07347153]
[1642661780512,0.23348308,42057.0,42056.0,1.07347153]
[1642661781715,0.22948308,42057.0,42056.0,1.07347153]
[1642661782316,0.23348308,42057.0,42056.0,1.07347153]
[1642661784264,0.22948308,42057.0,42056.0,1.07347153]
[1642661784469,0.23348308,42057.0,42056.0,1.07347153]
[1642661785569,0.00101728,42059.0,42058.0,0.118888]
[1642661785772,0.001,42063.0,42059.0,1.383975]
[1642661785968,0.001,42063.0,42062.0,0.38400897]
[1642661786266,0.00113752,42063.0,42062.0,0.76798397]
[1642661787265,0.00113752,42063.0,42062.0,1.01798397]
[1642661787567,0.00113752,42063.0,42062.0,0.76798397]
[1642661787810,0.00106947,42063.0,42062.0,1.11798397]
[1642661788110,0.00106947,42063.0,42062.0,0.76798397]
[1642661788513,0.23106947,42063.0,42062.0,0.83698397]
[1642661789614,0.00106947,42063.0,42062.0,0.76798397]
[1642661790213,0.00106947,42063.0,42062.0,0.76838647]
[1642661790412,0.00106947,42063.0,42062.0,0.80738647]
[1642661791665,0.00095582,42065.0,42062.0,0.76838647]
[1642661791860,0.00095582,42065.0,42063.0,1.352842]
[1642661792060,0.003,42068.0,42064.0,1.22086725]
[1642661792262,0.003,42068.0,42065.0,0.383975]
[1642661792461,6.876e-05,42067.0,42066.0,0.3438134]
[1642661792664,6.876e-05,42067.0,42066.0,1.47581686]
[1642661792861,6.876e-05,42067.0,42066.0,1.79619809]
[1642661794361,6.876e-05,42067.0,42066.0,1.85219809]
[1642661795211,6.876e-05,42067.0,42066.0,1.52641697]
[1642661795411,6.876e-05,42067.0,42066.0,1.52681853]
[1642661795710,6.876e-05,42067.0,42066.0,1.47081853]
[1642661796313,6.876e-05,42067.0,42066.0,1.52781853]
[1642661797713,6.876e-05,42067.0,42066.0,1.47081853]
[1642661798316,6.876e-05,42067.0,42066.0,1.52581853]
[1642661798515,6.876e-05,42067.0,42066.0,1.18200513]
[1642661799768,6.876e-05,42067.0,42066.0,1.12700513]
[1642661800367,6.876e-05,42067.0,42066.0,1.18000513]
[1642661801376,6.876e-05,42067.0,42066.0,0.79603013]
[1642661801570,6.876e-05,42067.0,42066.0,0.4226489]
[1642661801769,0.04796876,42067.0,42066.0,0.4226489]
[1642661802370,0.05396876,42067.0,42066.0,0.4616489]
[1642661803709,0.04796876,42067.0,42066.0,0.4226489]
[1642661804511,0.05496876,42067.0,42066.0,0.4656489]
[1642661805613,0.05496876,42067.0,42066.0,0.4226489]
[1642661805809,0.04796876,42067.0,42066.0,0.4226489]
[1642661806469,0.05396876,42067.0,42066.0,0.4616489]
[1642661807667,0.04796876,42067.0,42066.0,0.4226489]
[1642661807876,0.04796876,42067.0,42066.0,0.00040156]
[1642661808467,0.05296876,42067.0,42066.0,0.03740156]
[1642661810319,6.876e-05,42067.0,42066.0,0.00040156]
[1642661810518,0.00606876,42067.0,42066.0,0.42237656]
[1642661811824,6.876e-05,42067.0,42066.0,0.38437656]
[1642661812421,0.00606876,42067.0,42066.0,0.42737656]
[1642661812622,0.00606876,42067.0,42066.0,0.71683245]
[1642661813425,0.00606876,42067.0,42066.0,0.42737656]
[1642661813824,6.876e-05,42067.0,42066.0,0.38437656]
[1642661814068,6.876e-05,42067.0,42066.0,0.00040156]
[1642661814269,6.876e-05,42067.0,42066.0,0.29356453]
[1642661814569,0.00606876,42067.0,42066.0,0.04140156]
[1642661815365,0.00606876,42067.0,42066.0,0.0415089]
[1642661815869,0.30006876,42067.0,42066.0,0.00044314]
[1642661816069,6.876e-05,42067.0,42066.0,0.00044314]
[1642661816270,0.15006876,42067.0,42066.0,0.00044314]
[1642661816466,0.11106876,42067.0,42066.0,0.00044314]
[1642661816766,0.16106876,42067.0,42066.0,0.00044314]
[1642661817366,0.06106876,42067.0,42066.0,0.00044314]
[1642661817566,0.01106876,42067.0,42066.0,0.00044314]
[1642661817814,6.876e-05,42067.0,42066.0,0.00044314]
[1642661818221,0.35523759,42067.0,42066.0,0.00044314]
[1642661818418,0.36623759,42067.0,42066.0,0.00044314]
[1642661818615,0.51623759,42067.0,42066.0,0.00044314]
[1642661819616,0.20896876,42067.0,42066.0,0.00044314]
[1642661819820,0.29062004,42067.0,42066.0,0.00044314]
[1642661820018,0.19062004,42067.0,42066.0,0.00044314]
[1642661820219,0.14062004,42067.0,42066.0,0.00044314]
[1642661820422,0.49685463,42067.0,42066.0,0.00044314]
[1642661820617,0.60885463,42067.0,42066.0,0.00044314]
[1642661821019,0.30262004,42067.0,42066.0,0.00044314]
[1642661821767,0.29062004,42067.0,42066.0,0.00044314]
[1642661821970,0.19062004,42067.0,42066.0,0.00044314]
[1642661822171,0.14062004,42067.0,42066.0,0.00044314]
[1642661822373,0.04796876,42067.0,42066.0,0.00044314]
[1642661822568,0.05996876,42067.0,42066.0,0.00044314]
[1642661823770,0.04796876,42067.0,42066.0,0.00044314]
[1642661824573,0.05496876,42067.0,42066.0,0.00044314]
[1642661825214,0.05496876,42067.0,42066.0,0.28908794]
[1642661825413,0.00706876,42067.0,42066.0,0.57105901]
[1642661825812,6.876e-05,42067.0,42066.0,0.57105901]
[1642661826621,0.00806876,42067.0,42066.0,0.29014713]
[1642661826815,0.00806876,42067.0,42066.0,0.00044314]
[1642661827814,6.876e-05,42067.0,42066.0,0.29710967]
[1642661828016,6.876e-05,42067.0,42066.0,0.00044314]
[1642661828616,0.01406876,42067.0,42066.0,0.00044314]
[1642661828817,2.80365531,42067.0,42066.0,0.00044314]
[1642661829066,3.05157845,42067.0,42066.0,0.00044314]
[1642661829861,3.03757845,42067.0,42066.0,0.00044314]
[1642661830267,3.03757845,42067.0,42066.0,0.00032831]
[1642661830464,3.04657845,42067.0,42066.0,0.00032831]
[1642661831864,3.03757845,42067.0,42066.0,0.00032831]
[1642661832462,3.04757845,42067.0,42066.0,0.00032831]
[1642661832946,3.25506894,42067.0,42066.0,0.00032831]
[1642661833548,3.39352816,42067.0,42066.0,0.00032831]
[1642661833744,3.48352816,42067.0,42066.0,0.00032831]
[1642661834045,4.35116227,42067.0,42066.0,0.00032831]
[1642661834242,4.25116227,42067.0,42066.0,0.00032831]
[1642661834643,4.26216227,42067.0,42066.0,0.00032831]
[1642661834842,4.14454711,42067.0,42066.0,0.00032831]
[1642661835244,4.14454711,42067.0,42060.0,0.01033905]
[1642661835548,0.5992,42064.0,42060.0,0.01033905]
[1642661835745,0.0479,42063.0,42060.0,0.01033905]
[1642661836583,0.0589,42063.0,42060.0,0.01033905]
[1642661836782,0.0162,42061.0,42060.0,0.01033905]
[1642661836982,0.0641,42061.0,42060.0,0.01033905]
[1642661837382,0.0641,42061.0,42060.0,0.0102724]
[1642661838582,0.0751,42061.0,42060.0,0.0102724]
[1642661838784,0.46148069,42061.0,42060.0,0.0102724]
[1642661838987,0.66372069,42061.0,42060.0,0.0102724]
[1642661839184,1.47644535,42061.0,42060.0,0.0102724]
[1642661839685,1.14952966,42061.0,42060.0,0.0102724]
[1642661839882,1.13852966,42061.0,42060.0,0.0102724]
[1642661840323,0.49142966,42061.0,42060.0,0.0102724]
[1642661840520,0.72941966,42061.0,42060.0,0.0102724]
[1642661840721,0.45504966,42061.0,42060.0,0.0102724]
[1642661840921,0.37717966,42061.0,42060.0,0.0102724]
[1642661841117,0.62764267,42061.0,42060.0,0.0102724]
[1642661841318,0.72764267,42061.0,42060.0,0.0102724]
[1642661841919,0.71664267,42061.0,42060.0,0.0102724]
[1642661842519,0.72864267,42061.0,42060.0,0.0102724]
[1642661842718,0.37817966,42061.0,42060.0,0.0102724]
[1642661842919,0.22607966,42061.0,42060.0,0.0102724]
[1642661843323,0.135565,42061.0,42060.0,0.0102724]
[1642661843520,0.535565,42061.0,42060.0,0.0102724]
[1642661843720,0.523565,42061.0,42060.0,0.01294634]
[1642661843970,0.61397741,42061.0,42060.0,0.01294634]
[1642661844172,1.21317741,42061.0,42060.0,0.01294634]
[1642661844570,1.47417741,42061.0,42060.0,0.01294634]
[1642661844774,0.85,42060.0,42056.0,0.00108873]
[1642661844973,1.35047185,42057.0,42056.0,0.00108873]
[1642661845172,1.55785485,42057.0,42056.0,0.00108873]
[1642661845371,1.65785485,42057.0,42042.0,2.166]
[1642661845570,1.07886508,42056.0,42054.0,0.00108872]
[1642661845771,0.6979,42055.0,42054.0,0.00108872]
[1642661845976,1.0012342,42055.0,42054.0,0.00108872]
[1642661846270,1.1512342,42055.0,42054.0,0.00124343]
[1642661846670,1.1612342,42055.0,42054.0,0.00015471]
[1642661847170,1.1512342,42055.0,42053.0,0.0001719]
[1642661847571,0.5012342,42055.0,42053.0,0.0001719]
[1642661847827,0.5012342,42055.0,42040.0,0.42]
[1642661847828,0.85,42053.0,42040.0,0.42]
[1642661848025,1.20749,42053.0,42052.0,0.00108875]
[1642661848224,1.58179747,42053.0,42052.0,0.00108875]
[1642661848423,1.67579386,42053.0,42052.0,0.00108875]
[1642661848631,1.74628386,42053.0,42052.0,0.00108875]
[1642661849026,1.74628386,42053.0,42039.0,0.71223983]
[1642661849224,1.2492,42051.0,42050.0,0.01108878]
[1642661849423,1.3471,42051.0,42050.0,0.01108878]
[1642661849623,1.60729639,42051.0,42050.0,0.01108878]
[1642661850226,1.60729639,42051.0,42050.0,0.01]
[1642661850629,1.61729639,42051.0,42050.0,0.01]
[1642661851871,1.60729639,42051.0,42050.0,0.01]
[1642661852470,0.8633,42051.0,42050.0,0.01]
[1642661852768,1.21576831,42051.0,42050.0,0.01]
[1642661853170,1.16576831,42051.0,42050.0,0.01]
[1642661853474,0.8233,42051.0,42050.0,0.01]
[1642661853669,0.8733,42051.0,42050.0,0.01]
[1642661853879,0.8633,42051.0,42050.0,0.01]
[1642661854570,0.8783,42051.0,42050.0,0.01]
[1642661855418,0.8783,42051.0,42050.0,0.01034375]
[1642661855820,0.8633,42051.0,42050.0,0.01034375]
[1642661856621,0.8783,42051.0,42050.0,0.01034375]
[1642661857820,0.8633,42051.0,42050.0,0.01034375]
[1642661858624,0.8783,42051.0,42050.0,0.01034375]
[1642661859483,0.88426318,42051.0,42050.0,0.01034375]
[1642661859883,0.86926318,42051.0,42050.0,0.01034375]
[1642661860684,0.88426318,42051.0,42050.0,0.01034375]
[1642661862590,0.88326318,42051.0,42050.0,0.01034375]
[1642661862814,1.19458692,42051.0,42050.0,0.01034375]
[1642661863615,1.26596692,42051.0,42050.0,0.01034375]
[1642661863819,1.25196692,42051.0,42050.0,0.01034375]
[1642661864616,1.26415837,42051.0,42050.0,0.01034375]
[1642661864817,1.18681519,42051.0,42050.0,0.01034375]
[1642661865917,1.17381519,42051.0,42050.0,0.01034375]
[1642661866777,1.18681519,42051.0,42050.0,0.01034375]
[1642661867974,1.17381519,42051.0,42050.0,0.01034375]
[1642661868777,1.13762374,42051.0,42050.0,0.01034375]
[1642661869677,0.8263,42051.0,42050.0,0.01034375]
[1642661870074,0.8133,42051.0,42050.0,0.01034375]
[1642661870319,0.8133,42051.0,42050.0,0.00034375]
[1642661870623,0.8303,42051.0,42050.0,0.00034375]
[1642661871020,0.2311,42051.0,42050.0,0.00034375]
[1642661871220,0.54563358,42051.0,42050.0,0.00034375]
[1642661871422,0.44563358,42051.0,42050.0,0.00034375]
[1642661871630,0.2311,42051.0,42050.0,0.00034375]
[1642661871824,0.2141,42051.0,42050.0,0.00034375]
[1642661872127,0.4641,42051.0,42050.0,0.00034375]
[1642661872722,0.4811,42051.0,42050.0,0.00034375]
[1642661873622,0.2311,42051.0,42050.0,0.00034375]
[1642661873850,0.2641,42051.0,42050.0,0.00034375]
[1642661874067,0.1641,42051.0,42050.0,0.00034375]
[1642661874673,0.1811,42051.0,42050.0,0.00034375]
[1642661875567,0.1811,42051.0,42048.0,0.0014432]
[1642661875969,0.1641,42051.0,42049.0,6.876e-05]
[1642661876567,0.0162,42050.0,42049.0,6.876e-05]
[1642661877168,0.02,42051.0,42049.0,6.876e-05]
[1642661877822,0.2979,42050.0,42049.0,6.876e-05]
[1642661878522,0.3641,42050.0,42049.0,6.876e-05]
[1642661878822,0.3791,42050.0,42049.0,6.876e-05]
[1642661879022,0.4791,42050.0,42049.0,6.876e-05]
[1642661879422,0.69086809,42050.0,42049.0,6.876e-05]
[1642661879624,1.01319178,42050.0,42049.0,6.876e-05]
[1642661879823,0.55142369,42050.0,42049.0,6.876e-05]
[1642661880028,0.53642369,42050.0,42049.0,6.876e-05]
[1642661880324,0.2141,42050.0,42049.0,0.00042338]
[1642661880522,0.1141,42050.0,42049.0,0.00042338]
[1642661880723,0.1281,42050.0,42049.0,0.00042338]
[1642661881985,0.1141,42050.0,42049.0,0.00042338]
[1642661882672,0.1291,42050.0,42049.0,0.00042338]
[1642661883872,0.0791,42050.0,42049.0,0.00042338]
[1642661884072,0.0641,42050.0,42049.0,0.00042338]
[1642661884671,0.0801,42050.0,42049.0,0.0003606]
[1642661885417,0.0801,42050.0,42049.0,0.00053792]
[1642661885718,0.0322,42050.0,42049.0,0.00053792]
[1642661885919,0.0162,42050.0,42049.0,0.00047092]
[1642661886716,0.0452,42050.0,42049.0,0.00047092]
[1642661888017,0.0162,42050.0,42049.0,0.00047092]
[1642661888817,0.5351,42050.0,42049.0,0.00047092]
[1642661889069,0.1851,42050.0,42049.0,0.00047092]
[1642661889971,0.1641,42050.0,42049.0,0.00047092]
[1642661890477,0.30787841,42048.0,42047.0,0.00160551]
[1642661890671,0.35577841,42048.0,42047.0,0.00160551]
[1642661890870,0.40577841,42048.0,42047.0,0.00160551]
[1642661891070,0.43977841,42048.0,42047.0,0.00051668]
[1642661891271,0.53977841,42048.0,42047.0,0.00051668]
[1642661891669,0.43977841,42048.0,42047.0,0.00051668]
[1642661892071,0.33977841,42048.0,42047.0,0.00051668]
[1642661892824,0.37077841,42048.0,42047.0,0.00051668]
[1642661894024,0.33977841,42048.0,42047.0,0.00051668]
[1642661894724,0.37177841,42048.0,42047.0,0.00051668]
[1642661895325,0.37177841,42048.0,42045.0,0.00108886]
[1642661895326,0.37177841,42048.0,42045.0,0.00160625]
[1642661895531,0.52177841,42048.0,42045.0,0.00160625]
[1642661895726,0.52177841,42048.0,42045.0,0.00051739]
[1642661895927,0.48977841,42048.0,42045.0,0.00051739]
[1642661896472,0.0162,42046.0,42045.0,0.00051739]
[1642661896872,0.13600135,42046.0,42045.0,0.00058615]
[1642661897072,0.01512133,42046.0,42045.0,0.00058615]
[1642661897473,0.13600135,42046.0,42045.0,0.00058615]
[1642661898878,0.25000135,42046.0,42045.0,0.00058615]
[1642661899879,0.20000135,42046.0,42045.0,0.00058615]
[1642661900630,0.18600135,42046.0,42045.0,0.00058615]
[1642661900824,0.24700135,42046.0,42045.0,0.00058615]
[1642661901226,0.19700135,42046.0,42045.0,0.00058615]
[1642661901827,0.07612133,42046.0,42045.0,0.00058615]
[1642661902024,0.01512133,42046.0,42045.0,0.00058615]
[1642661902924,0.07402133,42046.0,42045.0,0.00458615]
[1642661903967,0.06302133,42046.0,42045.0,0.00058615]
[1642661904170,0.01512133,42046.0,42045.0,0.00058615]
[1642661904769,0.02412133,42046.0,42045.0,0.00458615]
[1642661905369,0.2058779,42046.0,42045.0,0.00458615]
[1642661905969,0.1968779,42046.0,42045.0,0.00058615]
[1642661906568,0.01512133,42046.0,42045.0,0.00058615]
[1642661906768,0.03212133,42046.0,42045.0,0.00358615]
[1642661908121,0.01512133,42046.0,42045.0,0.00058615]
[1642661908725,0.01512133,42046.0,42045.0,0.00358615]
[1642661908928,0.03612133,42046.0,42045.0,0.00358615]
[1642661910324,0.01512133,42046.0,42045.0,0.00058615]
[1642661910724,0.01512133,42046.0,42045.0,0.00358615]
[1642661910933,0.03212133,42046.0,42045.0,0.00358615]
[1642661911974,0.03212133,42046.0,42045.0,0.00058615]
[1642661912175,0.01512133,42046.0,42045.0,0.00058615]
[1642661912875,0.02812133,42046.0,42045.0,0.28848489]
[1642661913976,0.02812133,42046.0,42045.0,0.28348489]
[1642661914174,0.01512133,42046.0,42045.0,0.28348489]
[1642661914774,0.03112133,42046.0,42045.0,0.28748489]
[1642661915221,0.03112133,42046.0,42045.0,0.00458615]
[1642661916021,0.01512133,42046.0,42045.0,0.00058615]
[1642661916225,0.06302133,42046.0,42045.0,0.00058615]
[1642661916820,0.06302133,42046.0,42045.0,0.00458615]
[1642661916821,0.08002133,42046.0,42045.0,0.00458615]
[1642661917020,0.13002133,42046.0,42045.0,0.00458615]
[1642661917821,0.08002133,42046.0,42045.0,0.00458615]
[1642661918020,0.08002133,42046.0,42045.0,0.00058615]
[1642661918219,0.06302133,42046.0,42045.0,0.00058615]
[1642661918826,0.08202133,42046.0,42045.0,0.00458615]
[1642661920172,0.06302133,42046.0,42045.0,0.00058615]
[1642661920771,0.06302133,42046.0,42045.0,0.00458615]
[1642661920972,0.08302133,42046.0,42045.0,0.00458615]
[1642661922175,0.06302133,42046.0,42045.0,0.00058615]
[1642661922823,0.08395671,42046.0,42045.0,0.00358615]
[1642661923723,0.13395671,42046.0,42045.0,0.00358615]
[1642661924121,0.13395671,42046.0,42045.0,0.00058615]
[1642661924122,0.11295671,42046.0,42045.0,0.00058615]
[1642661924721,0.06295671,42046.0,42045.0,0.00058615]
[1642661924922,0.08095671,42046.0,42045.0,0.00058615]
[1642661926703,0.06295671,42046.0,42045.0,0.00058615]
[1642661926902,0.08195671,42046.0,42045.0,0.00058615]
[1642661928102,0.06295671,42046.0,42045.0,0.00058615]
[1642661928906,0.08395671,42046.0,42045.0,0.00058615]
[1642661930106,0.06295671,42046.0,42045.0,0.00058615]
[1642661930929,0.08395671,42046.0,42045.0,0.00058615]
[1642661932131,0.06295671,42046.0,42045.0,0.00058615]
[1642661932933,0.08195671,42046.0,42045.0,0.00058615]
[1642661934074,0.06295671,42046.0,42045.0,0.00058615]
[1642661934973,0.08195671,42046.0,42045.0,0.00058615]
[1642661935678,0.0831,42046.0,42045.0,0.00058615]
[1642661936174,0.0641,42046.0,42045.0,0.00058615]
[1642661936879,0.0821,42046.0,42045.0,0.00058615]
[1642661938220,0.0641,42046.0,42045.0,0.00058615]
[1642661938822,0.0821,42046.0,42045.0,0.00058615]
[1642661939020,0.1321,42046.0,42045.0,0.00058615]
[1642661940020,0.0821,42046.0,42045.0,0.00058615]
[1642661940319,0.0641,42046.0,42045.0,0.00058615]
[1642661940920,0.0841,42046.0,42045.0,0.00058615]
[1642661942774,0.0641,42046.0,42045.0,0.00058615]
[1642661942973,0.1341,42046.0,42045.0,0.00058615]
[1642661943173,0.0841,42046.0,42045.0,0.00058615]
[1642661943375,0.1341,42046.0,42045.0,0.00058615]
[1642661944775,0.1141,42046.0,42045.0,0.00058615]
[1642661944976,0.1351,42046.0,42045.0,0.00058615]
[1642661945223,0.0851,42046.0,42045.0,0.00058615]
[1642661945425,0.0689,42046.0,42045.0,0.00041416]
[1642661946824,0.0479,42046.0,42045.0,0.00041416]
[1642661947023,0.0479,42046.0,42045.0,0.00341416]
[1642661947024,0.0729,42046.0,42045.0,0.00341416]
[1642661948125,0.0479,42046.0,42045.0,0.00041416]
[1642661948325,0.0479,42046.0,42045.0,0.30041416]
[1642661948525,0.0479,42046.0,42045.0,0.00041416]
[1642661948973,0.0649,42046.0,42045.0,0.00241416]
[1642661950174,0.0649,42046.0,42045.0,0.00041416]
[1642661950175,0.0479,42046.0,42045.0,0.00041416]
[1642661950374,0.0479,42046.0,42045.0,0.40041416]
[1642661951088,0.0869,42046.0,42045.0,0.35309506]
[1642661952178,0.0479,42046.0,42045.0,0.35009506]
[1642661952958,0.0809,42046.0,42045.0,0.35309506]
[1642661953958,0.033,42046.0,42045.0,0.35309506]
[1642661954162,0.0162,42051.0,42045.0,0.35009506]
[1642661954560,8.595e-05,42050.0,42045.0,0.35009506]
[1642661954858,6.876e-05,42049.0,42046.0,0.00108886]
[1642661955862,6.876e-05,42049.0,42045.0,0.00389423]
[1642661956058,0.0479,42048.0,42045.0,0.00498309]
[1642661956259,0.0479,42048.0,42045.0,0.00198309]
[1642661956489,0.0162,42046.0,42045.0,0.00198309]
[1642661956689,0.0641,42046.0,42045.0,0.00198309]
[1642661956888,0.0841,42046.0,42045.0,0.00598309]
[1642661957086,0.0841,42046.0,42045.0,0.00489423]
[1642661958189,0.0641,42046.0,42045.0,0.00089423]
[1642661958990,0.0871,42046.0,42045.0,0.00489423]
[1642661960231,0.0641,42046.0,42045.0,0.00089423]
[1642661960827,0.0479,42046.0,42045.0,0.00089423]
[1642661961026,0.0709,42046.0,42045.0,0.00389423]
[1642661962229,0.0479,42046.0,42045.0,0.00089423]
[1642661963030,0.0709,42046.0,42045.0,0.00489423]
[1642661964276,0.0479,42046.0,42045.0,0.00089423]
[1642661964978,0.0659,42046.0,42045.0,0.00089423]
[1642661965384,0.0659,42046.0,42043.0,0.00044711]
[1642661965578,0.08132,42046.0,42043.0,0.001536]
[1642661966286,0.06332,42046.0,42043.0,0.001536]
[1642661966678,0.01542,42044.0,42043.0,0.00044711]
[1642661966880,0.06332,42044.0,42043.0,0.00044711]
[1642661967079,0.06332,42044.0,42043.0,0.01644711]
[1642661968324,0.06332,42044.0,42043.0,0.00044711]
[1642661968925,0.06832,42044.0,42043.0,0.01744711]
[1642661970126,0.06832,42044.0,42043.0,0.00044711]
[1642661970327,0.06332,42044.0,42043.0,0.00089565]
[1642661971027,0.06832,42044.0,42043.0,0.01689565]
[1642661972274,0.0479,42044.0,42043.0,0.00089565]
[1642661973077,0.0539,42044.0,42043.0,0.01789565]
[1642661974475,0.0479,42044.0,42043.0,0.00089565]
[1642661975078,0.0539,42044.0,42043.0,0.01789565]
[1642661976329,0.0479,42044.0,42043.0,0.00089565]
[1642661976932,0.06332,42044.0,42043.0,0.00089565]
[1642661977133,0.06932,42044.0,42043.0,0.01389565]
[1642661978338,0.06332,42044.0,42043.0,0.00089565]
[1642661978980,0.06932,42044.0,42043.0,0.01389565]
[1642661980376,0.06332,42044.0,42043.0,0.00089565]
[1642661980981,0.06932,42044.0,42043.0,0.01489565]
[1642661981777,0.11932,42044.0,42043.0,0.01489565]
[1642661982482,0.11332,42044.0,42043.0,0.00089565]
[1642661983135,0.12332,42044.0,42043.0,0.00189565]
[1642661984335,0.11332,42044.0,42043.0,0.00089565]
[1642661984937,0.43709177,42044.0,42043.0,0.00089565]
[1642661985437,0.43709177,42044.0,42041.0,0.00198457]
[1642661985836,0.43709177,42044.0,42041.0,0.00089565]
[1642661986035,0.01542,42042.0,42041.0,0.00089565]
[1642661986239,0.06332,42042.0,42041.0,0.00089565]
[1642661986481,0.06332,42042.0,42041.0,0.00096441]
[1642661987084,0.38947623,42042.0,42041.0,0.00096441]
[1642661987682,0.07332,42042.0,42041.0,0.00088804]
[1642661988283,0.06332,42042.0,42041.0,0.00088804]
[1642661989085,0.07432,42042.0,42041.0,0.00088804]
[1642661989486,0.12432,42042.0,42041.0,0.00088804]
[1642661990729,0.12425159,42042.0,42041.0,0.00088804]
[1642661990923,0.11325159,42042.0,42041.0,0.00088804]
[1642661991125,0.07425159,42042.0,42041.0,0.00088804]
[1642661991429,0.12425159,42042.0,42041.0,0.00088804]
[1642661992326,0.11325159,42042.0,42041.0,0.00088804]
[1642661993226,0.12525159,42042.0,42041.0,0.00088804]
[1642661993525,0.44619208,42042.0,42041.0,0.00088804]
[1642661994376,0.43419208,42042.0,42041.0,0.00088804]
[1642661994774,0.53115586,42042.0,42041.0,0.00088804]
[1642661995174,0.54315586,42042.0,42041.0,0.00088804]
[1642661996176,0.22221537,42042.0,42041.0,0.00088804]
[1642661996377,0.21021537,42042.0,42041.0,0.00088804]
[1642661996685,0.53638468,42042.0,42041.0,0.00088804]
[1642661996878,0.4394209,42042.0,42041.0,0.00088804]
[1642661997076,0.53629984,42042.0,42041.0,0.00088804]
[1642661997278,0.54829984,42042.0,42041.0,0.00088804]
[1642661998931,0.53629984,42042.0,42041.0,0.00088804]
[1642661999132,0.54829984,42042.0,42041.0,0.00088804]
[1642662000533,0.53629984,42042.0,42041.0,0.00088804]
[1642662000734,0.21013053,42042.0,42041.0,0.00088804]
[1642662001236,0.10787894,42042.0,42041.0,0.00088804]
[1642662001482,0.011,42042.0,42041.0,0.00088804]
[1642662002278,0.01139098,42042.0,42041.0,0.00088804]
[1642662002476,0.00039098,42042.0,42041.0,0.00088804]
[1642662002677,0.00039098,42042.0,42041.0,0.25088804]
[1642662003078,0.01939098,42042.0,42041.0,0.63886304]
[1642662004079,0.01939098,42042.0,42041.0,0.94094905]
[1642662004878,0.00039098,42042.0,42041.0,0.93694905]
[1642662005332,0.00039098,42042.0,42041.0,0.94894905]
[1642662006731,0.00039098,42042.0,42041.0,0.39686304]
[1642662007137,0.00239098,42042.0,42041.0,0.01188804]
[1642662008334,0.00039098,42042.0,42041.0,0.00088804]
[1642662009179,0.00039098,42042.0,42041.0,0.01888804]
[1642662009180,0.00239098,42042.0,42041.0,0.01888804]
[1642662009378,0.02467692,42042.0,42041.0,0.01888804]
[1642662009581,0.01682597,42042.0,42041.0,0.01888804]
[1642662009885,0.03126096,42042.0,42041.0,0.01888804]
[1642662010578,0.02926096,42042.0,42041.0,0.00088804]
[1642662010982,0.12716096,42042.0,42041.0,0.00088804]
[1642662011179,0.13016096,42042.0,42041.0,0.01588804]
[1642662011381,0.24218655,42042.0,42041.0,0.01588804]
[1642662011776,0.14551255,42042.0,42041.0,0.01588804]
[1642662011977,0.14551255,42042.0,42040.0,0.38544681]
[1642662012179,0.22060955,42041.0,42031.0,1.29499511]
[1642662012384,0.06364257,42040.0,42039.0,0.00108895]
[1642662012579,0.33790589,42040.0,42039.0,0.00108895]
[1642662012871,0.93710589,42040.0,42039.0,0.00108895]
[1642662013071,0.98710589,42040.0,42039.0,0.00108895]
[1642662013275,1.14586568,42040.0,42039.0,0.00108895]
[1642662013471,1.24586568,42040.0,42035.0,0.00010314]
[1642662013671,0.178517,42039.0,42037.0,0.00108898]
[1642662013869,0.74829098,42038.0,42037.0,0.00108898]
[1642662014070,0.94829098,42038.0,42037.0,0.00108898]
[1642662014273,0.94829098,42038.0,42037.0,0.00115774]
[1642662014274,1.9027286,42038.0,42037.0,0.00115774]
[1642662014472,2.04165505,42038.0,42037.0,0.00115774]
[1642662014680,0.8,42037.0,42021.0,0.9998]
[1642662014875,0.718232,42030.0,42029.0,0.00435666]
[1642662015078,0.83056699,42030.0,42029.0,0.00435666]
[1642662015273,0.95550624,42030.0,42029.0,0.00435666]
[1642662015471,0.95589722,42030.0,42029.0,0.00435666]
[1642662015872,0.90589722,42030.0,42025.0,0.3289775]
[1642662016073,0.90550624,42030.0,42024.0,0.3280134]
[1642662016274,0.90550624,42030.0,42026.0,0.0001891]
[1642662016487,0.90550624,42030.0,42022.0,0.3289775]
[1642662016488,0.90550624,42030.0,42025.0,0.00020629]
[1642662016886,0.90550624,42030.0,42023.0,0.00024067]
[1642662017090,0.00039098,42027.0,42023.0,0.00024067]
[1642662017290,0.0479,42026.0,42023.0,0.00024067]
[1642662017490,0.0479,42025.0,42023.0,0.00024067]
[1642662017695,0.01535159,42028.0,42023.0,0.00024067]
[1642662017696,0.6471,42024.0,42023.0,0.00024067]
[1642662018188,0.6471,42024.0,42020.0,0.00029224]
[1642662018189,0.71245159,42024.0,42020.0,0.00029224]
[1642662018388,0.059522,42023.0,42021.0,0.00121175]
[1642662018587,0.34829098,42022.0,42021.0,0.00121175]
[1642662018788,0.99134877,42022.0,42021.0,0.00121175]
[1642662018988,1.04134877,42022.0,42021.0,0.0014868]
[1642662019191,1.04834877,42022.0,42021.0,0.0014868]
[1642662019388,1.04834877,42022.0,42021.0,0.00027505]
[1642662019788,1.04834877,42022.0,42020.0,0.00029224]
[1642662019789,1.41999458,42022.0,42020.0,0.00029224]
[1642662019990,0.38700045,42021.0,42020.0,0.00029224]